bitfinex/quotes_ETHUSD_20250219
["timestamp","ask_amount","ask_price","bid_price","bid_amount"]
[1740000743279,3.66528,2728.3,2728.1,0.005]
[1740000743580,3.66542,2728.2,2728.1,0.005]
[1740000748423,4.30938,2728.3,2728.1,0.005]
[1740000748597,3.66542,2728.2,2728.1,0.005]
[1740000748806,4.87333235,2728.2,2728.1,0.005]
[1740000749207,10.23333235,2728.2,2728.1,0.005]
[1740000754330,10.96859907,2728.2,2728.1,0.005]
[1740000754532,11.61269907,2728.2,2728.1,0.005]
[1740000754897,10.87743235,2728.2,2728.1,0.005]
[1740000755135,5.36,2728.2,2728.1,0.005]
[1740000755303,5.627,2728.2,2728.1,0.005]
[1740000755830,5.36,2728.2,2728.1,0.7861]
[1740000755995,5.627,2728.6,2728.2,4.44652]
[1740000756200,5.627,2728.6,2728.3,3.66518]
[1740000756399,5.627,2728.6,2728.3,0.81167]
[1740000756627,5.627,2728.6,2728.3,4.47683]
[1740000756827,5.627,2728.6,2728.3,0.81167]
[1740000757520,6.2711,2728.6,2728.1,0.005]
[1740000757726,3.66501,2728.5,2728.1,0.005]
[1740000757908,3.66542,2728.2,2728.1,0.005]
[1740000758297,3.66531,2728.3,2728.1,0.005]
[1740000759503,3.66542,2728.2,2728.1,0.005]
[1740000760227,3.66531,2728.3,2728.1,0.005]
[1740000760805,7.33019,2728.5,2728.1,0.005]
[1740000761019,3.66522,2728.4,2728.1,0.005]
[1740000761543,3.66529,2728.3,2728.1,0.005]
[1740000762112,10.752008,2728.5,2728.1,0.005]
[1740000762308,5.36,2728.5,2728.1,0.005]
[1740000762521,5.36,2728.5,2728.4,4.48005]
[1740000763412,5.3904,2729.0,2728.5,0.8149]
[1740000763624,0.0304,2729.0,2728.8,3.66451]
[1740000763862,0.0304,2729.0,2728.9,4.47938]
[1740000764074,0.0304,2729.0,2728.9,0.8149]
[1740000765674,0.0304,2729.0,2728.9,4.47938]
[1740000773259,0.0304,2729.0,2728.9,0.8149]
[1740000773645,0.0304,2729.0,2728.9,1.3361334]
[1740000775032,0.0304,2729.0,2728.7,0.7553]
[1740000775828,0.0304,2729.0,2728.7,4.42002]
[1740000780394,0.0304,2729.0,2728.7,8.08467]
[1740000780555,0.0304,2729.0,2728.7,0.7553]
[1740000780870,0.0304,2729.0,2728.9,3.66448]
[1740000781190,0.0304,2729.0,2728.9,0.808437]
[1740000781351,0.0304,2729.0,2728.7,4.41993]
[1740000781551,0.0304,2729.0,2728.7,8.08458]
[1740000781872,0.0304,2729.0,2728.7,4.41993]
[1740000782077,0.0304,2729.0,2728.8,3.66452]
[1740000783285,0.0304,2729.0,2728.9,3.66448]
[1740000783460,0.0304,2729.0,2728.9,4.472928]
[1740000784279,0.0304,2729.0,2728.9,5.291528]
[1740000787696,0.0304,2729.0,2728.9,4.48308]
[1740000789302,0.0304,2729.0,2728.9,3.66448]
[1740000789473,0.0304,2729.0,2728.7,4.41832]
[1740000789891,0.0304,2729.0,2728.8,3.66455]
[1740000791894,0.0304,2729.0,2728.9,3.66448]
[1740000792607,0.0304,2729.0,2728.7,8.08296]
[1740000793306,0.0304,2729.0,2728.7,9.428256]
[1740000794201,0.0304,2729.0,2728.7,5.763536]
[1740000794402,0.0304,2729.0,2728.6,3.66486]
[1740000795527,0.0304,2729.0,2728.7,3.6647]
[1740000796348,0.0304,2729.0,2728.5,3.66501]
[1740000796550,0.0304,2729.0,2728.6,3.66485]
[1740000799329,0.0304,2729.0,2728.4,0.8321]
[1740000799508,0.0304,2729.0,2728.9,4.43138]
[1740000800112,0.0304,2729.0,2728.9,0.7669]
[1740000800515,0.0304,2729.0,2728.9,4.43138]
[1740000800832,0.0304,2729.0,2728.8,3.6646]
[1740000801238,0.0304,2729.0,2728.9,3.66448]
[1740000802538,0.0304,2729.0,2728.8,3.6646]
[1740000802953,0.0304,2729.0,2728.9,3.66448]
[1740000803118,0.0304,2729.0,2728.9,4.474078]
[1740000803947,0.0304,2729.0,2728.9,0.809598]
[1740000804154,0.0304,2729.0,2728.8,3.6646]
[1740000804333,0.0304,2729.0,2728.9,3.66448]
[1740000804531,0.0304,2729.0,2728.8,3.6646]
[1740000804942,0.0304,2729.0,2728.8,3.66453]
[1740000805143,0.0304,2729.0,2728.9,3.66448]
[1740000805552,0.0304,2729.0,2728.8,3.6646]
[1740000805860,0.0304,2729.0,2728.8,4.474228]
[1740000806065,0.0304,2729.0,2728.9,3.66448]
[1740000806652,0.0304,2729.0,2728.9,4.43218]
[1740000813588,0.6441,2729.9,2729.7,3.66331]
[1740000813878,0.6441,2729.9,2729.6,3.66353]
[1740000814645,0.6441,2729.9,2729.7,3.6634]
[1740000814840,9.66683,2730.2,2729.7,3.6634]
[1740000815547,5.36,2730.2,2729.4,3.11789004]
[1740000815741,5.36,2730.2,2729.9,3.66303]
[1740000815956,5.36,2730.2,2730.0,3.663]
[1740000816153,0.6441,2730.4,2730.2,3.66272]
[1740000817490,0.6441,2730.4,2730.0,4.4619]
[1740000817801,0.6441,2730.4,2729.9,3.66301]
[1740000818005,0.6441,2730.4,2729.9,4.109211]
[1740000818204,4.30657,2730.4,2729.7,7.3267]
[1740000818503,0.6441,2730.2,2729.7,3.66332]
[1740000818702,4.30696,2730.2,2729.5,7.638919]
[1740000818904,4.30696,2730.2,2729.6,0.8437919]
[1740000819104,4.30696,2730.2,2729.7,3.6634]
[1740000819806,3.66293,2730.1,2729.5,3.66355]
[1740000820009,3.66303,2730.0,2729.5,3.66355]
[1740000820509,4.30697,2730.1,2729.5,4.396292]
[1740000820704,4.30697,2730.1,2729.5,7.32714]
[1740000820899,4.30697,2730.1,2729.5,7.32712]
[1740000821099,0.6441,2730.1,2729.5,3.66355]
[1740000821300,0.6441,2730.1,2729.6,3.66342]
[1740000824102,0.6441,2730.1,2729.7,3.66337]
[1740000824816,0.6441,2730.3,2729.9,3.66307]
[1740000826190,0.6441,2730.3,2729.9,3.663]
[1740000826516,0.6441,2730.3,2730.0,3.66293]
[1740000827415,0.6441,2730.3,2729.6,0.799]
[1740000827620,0.6441,2730.3,2730.0,3.66293]
[1740000827992,0.6441,2730.3,2730.0,4.39554]
[1740000828191,0.6441,2730.3,2730.1,3.66286]
[1740000828902,0.6441,2730.3,2730.0,0.73261]
[1740000829099,0.6441,2730.3,2729.9,3.66311]
[1740000829523,0.6441,2730.3,2730.0,3.66297]
[1740000829893,0.6441,2730.3,2730.1,3.66284]
[1740000830308,0.6441,2730.3,2729.9,3.66313]
[1740000830628,0.6441,2730.3,2730.0,3.66299]
[1740000830824,5.36,2730.4,2730.0,3.66299]
[1740000830825,5.36,2730.4,2730.0,5.194602]
[1740000831016,5.36,2730.4,2730.1,3.66284]
[1740000831627,5.36,2730.4,2730.0,0.732612]
[1740000831928,5.36,2730.4,2729.9,3.66307]
[1740000832315,3.66266,2730.3,2729.7,3.66332]
[1740000832511,0.6441,2730.2,2729.8,3.66323]
[1740000834534,0.6441,2730.2,2729.9,3.66306]
[1740000834736,0.6441,2730.2,2729.8,3.66323]
[1740000834936,4.30685,2730.2,2729.8,3.66323]
[1740000835338,0.6441,2730.2,2729.8,3.66323]
[1740000835734,4.3069,2730.2,2729.7,3.66339]
[1740000840945,4.30684,2730.2,2729.7,3.66339]
[1740000842144,3.66287,2730.1,2729.7,3.66339]
[1740000842343,0.6441,2730.2,2729.7,3.66339]
[1740000842852,4.30691,2730.2,2729.7,3.66339]
[1740000844031,4.30691,2730.2,2729.8,3.66325]
[1740000844241,0.6441,2730.2,2729.8,3.66325]
[1740000845053,0.6441,2730.2,2729.8,4.4891]
[1740000845230,0.6441,2730.4,2729.9,3.66313]
[1740000845755,0.6441,2730.4,2729.9,7.32618]
[1740000846045,0.6441,2730.4,2730.1,3.66281]
[1740000846448,0.6441,2730.4,2730.0,3.6629]
[1740000846747,0.6441,2730.4,2730.0,3.66294]
[1740000846947,5.36,2730.5,2730.1,3.6628]
[1740000847120,4.30635,2730.6,2730.1,3.6628]
[1740000847322,0.6441,2730.6,2730.3,3.66248]
[1740000847520,0.6441,2730.6,2730.1,0.81775819]
[1740000847763,1.39164208,2730.9,2730.4,3.66239]
[1740000847963,0.6441,2730.9,2730.4,3.66239]
[1740000848255,4.30593,2730.9,2730.4,3.66239]
[1740000848430,3.66199,2730.8,2730.3,4.48226]
[1740000848620,3.66199,2730.8,2730.3,0.8197]
[1740000848821,3.66199,2730.8,2730.3,1.267938]
[1740000849154,3.66199,2730.8,2730.3,4.930498]
[1740000849354,0.6441,2730.9,2730.3,1.267938]
[1740000849654,7.96778,2730.9,2730.4,3.66245]
[1740000849854,7.96778,2730.9,2730.5,0.4930388]
[1740000850360,4.3059,2730.9,2730.5,0.4930388]
[1740000850533,7.96777,2730.9,2730.5,0.4930388]
[1740000850734,4.3059,2730.9,2730.5,0.4930388]
[1740000850933,3.66193,2730.8,2730.3,4.930518]
[1740000851951,4.3059,2730.9,2730.3,1.267938]
[1740000852157,4.3059,2730.9,2730.4,7.3248]
[1740000852356,7.96777,2730.9,2730.4,3.6624]
[1740000852725,4.3059,2730.9,2730.4,3.6624]
[1740000852956,4.3059,2730.9,2730.5,0.4930338]
[1740000853157,7.96777,2730.9,2730.5,0.4930338]
[1740000853554,4.3059,2730.9,2730.5,0.4930338]
[1740000853719,3.66194,2730.8,2730.5,0.4930338]
[1740000854548,3.66194,2730.8,2730.3,0.448238]
[1740000855459,0.6441,2730.9,2730.3,0.448238]
[1740000855649,0.6441,2730.9,2730.4,3.6624]
[1740000855955,4.30589,2730.9,2730.4,3.6624]
[1740000857029,0.6441,2730.9,2730.4,3.6624]
[1740000857262,3.66193,2730.8,2730.4,4.4397258]
[1740000857562,3.38489004,2731.1,2730.5,0.8242]
[1740000857563,4.02899004,2731.1,2730.5,0.8242]
[1740000857778,3.9111,2731.1,2730.5,4.48648]
[1740000858362,3.66185,2730.9,2730.5,0.8242]
[1740000858656,3.66185,2730.9,2730.5,1.35059158]
[1740000859029,0.9111,2731.1,2730.5,1.35059158]
[1740000859230,3.66167,2731.0,2730.5,5.01289158]
[1740000859466,3.66167,2731.0,2730.5,1.35059158]
[1740000859644,3.66186,2730.9,2730.5,0.8242]
[1740000860462,3.66167,2731.0,2730.5,4.48652]
[1740000860764,7.32343,2731.0,2730.5,4.48652]
[1740000861362,5.36,2731.3,2730.8,3.66183]
[1740000861526,5.36,2731.3,2730.6,3.66219]
[1740000861527,3.66153,2731.1,2730.6,3.66219]
[1740000861724,3.66153,2731.1,2730.6,4.477052]
[1740000862228,3.6615,2731.2,2730.6,0.814862]
[1740000862425,3.66173,2731.0,2730.6,0.814862]
[1740000863337,4.30564,2731.1,2730.6,4.477052]
[1740000863734,3.66186,2730.9,2730.3,4.48678]
[1740000863992,3.66186,2730.9,2730.4,3.66244]
[1740000864582,3.66196,2730.8,2730.4,3.66244]
[1740000864785,3.66196,2730.8,2730.3,4.48679]
[1740000864989,3.66196,2730.8,2730.3,0.8242]
[1740000865135,0.6441,2730.5,2730.1,6.181]
[1740000865341,3.66247,2730.4,2729.9,4.47412]
[1740000865650,0.6441,2730.5,2730.0,3.66298]
[1740000865863,4.30647,2730.5,2729.9,4.4741]
[1740000866545,3.66309,2730.0,2729.3,4.46817]
[1740000866734,3.66286,2730.1,2729.4,3.66378]
[1740000866932,3.11789004,2730.2,2729.3,0.8043]
[1740000866933,4.30674,2730.3,2729.6,3.66345]
[1740000867161,6.2711,2730.5,2729.7,0.8043]
[1740000867370,5.36,2730.5,2730.1,4.46705]
[1740000867668,0.9111,2730.7,2729.8,0.7629]
[1740000867885,3.66268,2730.3,2729.5,4.42645]
[1740000868058,3.66294,2730.1,2729.3,4.42675]
[1740000868257,3.663,2730.0,2729.4,0.442675]
[1740000868447,0.6441,2729.9,2729.4,0.442675]
[1740000868646,4.30728,2729.9,2729.4,0.442675]
[1740000868859,3.66327,2729.8,2729.4,0.442675]
[1740000869661,3.66327,2729.8,2729.3,0.7629]
[1740000869850,3.66348,2729.7,2729.3,0.7629]
[1740000870770,3.66327,2729.8,2729.3,0.7629]
[1740000871371,7.32663,2729.8,2729.3,0.7629]
[1740000871670,3.66327,2729.8,2729.3,0.7629]
[1740000871861,7.32662,2729.8,2729.3,1.205594]
[1740000872368,3.66327,2729.8,2729.3,1.205594]
[1740000872954,3.66327,2729.8,2729.3,4.869524]
[1740000873156,7.32665,2729.8,2729.3,1.205594]
[1740000874990,3.66342,2729.7,2729.3,1.205594]
[1740000875770,3.66327,2729.8,2729.3,1.205594]
[1740000875971,7.32665,2729.8,2729.3,1.205594]
[1740000877693,3.66327,2729.8,2729.3,1.205594]
[1740000877988,7.32664,2729.8,2729.3,1.205594]
[1740000878180,3.66327,2729.8,2729.3,1.205594]
[1740000879397,3.66341,2729.7,2729.3,1.205594]
[1740000881300,3.66341,2729.7,2729.3,0.7629]
[1740000881900,3.66355,2729.6,2729.3,0.7629]
[1740000882279,3.66355,2729.6,2729.0,3.66424]
[1740000882481,3.66373,2729.5,2729.0,4.47014]
[1740000882701,3.66373,2729.5,2729.0,5.820606]
[1740000883105,3.6638,2729.4,2729.0,2.156366]
[1740000883396,3.66376,2729.5,2729.0,5.820706]
[1740000884702,3.6637,2729.5,2729.0,5.820706]
[1740000888280,3.66382,2729.4,2729.0,2.156366]
[1740000888485,3.66382,2729.4,2729.0,0.8059]
[1740000890876,3.66356,2729.6,2729.1,3.66419]
[1740000891109,0.267,2729.7,2729.1,3.66419]
[1740000891296,3.66352,2729.7,2729.1,3.66419]
[1740000891805,6.2711,2729.8,2729.1,3.66419]
[1740000892005,5.627,2729.8,2729.3,4.44304]
[1740000892204,5.627,2729.8,2729.3,0.7792]
[1740000892379,3.66364,2729.6,2729.3,0.7792]
[1740000892799,3.66355,2729.6,2729.3,0.7792]
[1740000892988,3.6634,2729.7,2729.3,0.7792]
[1740000893385,3.66367,2729.5,2729.3,0.7792]
[1740000893592,3.66367,2729.5,2729.1,0.7972]
[1740000893593,7.32744,2729.5,2729.1,0.7972]
[1740000893892,3.66367,2729.5,2729.1,0.7972]
[1740000898324,3.66351,2729.7,2729.2,0.446153]
[1740000898614,3.66351,2729.7,2729.3,0.7631]
[1740000900293,3.66363,2729.6,2729.3,0.7631]
[1740000900505,3.66376,2729.5,2729.1,0.7631]
[1740000901125,3.66376,2729.5,2729.1,4.42729]
[1740000901287,5.36,2729.8,2729.1,4.42729]
[1740000901288,3.6634,2729.7,2729.2,3.664]
[1740000901487,3.6634,2729.7,2729.1,5.236458]
[1740000901688,3.66356,2729.6,2729.1,5.236458]
[1740000903421,3.66356,2729.6,2729.1,4.42729]
[1740000903714,3.6637,2729.5,2729.1,4.42729]
[1740000904213,3.6637,2729.5,2729.1,0.7631]
[1740000904414,4.3078,2729.5,2729.1,0.7631]
[1740000908940,0.6441,2729.7,2729.4,3.66378]
[1740000909222,5.36,2729.8,2729.7,3.6634]
[1740000909719,0.6441,2730.3,2729.7,3.6634]
[1740000909882,0.6441,2730.3,2729.9,0.7965]
[1740000910089,3.92947,2730.4,2729.9,0.7965]
[1740000910324,3.66271,2730.3,2729.9,0.7965]
[1740000910534,3.66273,2730.2,2729.9,0.7965]
[1740000911511,7.32554,2730.2,2729.9,0.7965]
[1740000911713,3.66302,2730.0,2729.6,0.7902]
[1740000911919,3.66315,2729.9,2729.4,1.522985]
[1740000912208,0.6441,2729.7,2729.2,0.7542]
[1740000912400,0.267,2729.6,2728.9,0.7542]
[1740000912628,3.66402,2729.3,2728.7,0.7542]
[1740000912928,3.66402,2729.3,2728.7,4.41886]
[1740000913112,0.267,2729.6,2728.8,4.472972]
[1740000913316,3.66367,2729.5,2728.9,3.66444]
[1740000914720,3.66381,2729.4,2728.9,3.66444]
[1740000914921,7.32772,2729.4,2728.8,4.472972]
[1740000915120,3.66395,2729.3,2728.8,4.472972]
[1740000916733,5.36,2729.6,2728.9,3.66437]
[1740000916930,5.36,2729.6,2729.0,3.66434]
[1740000917100,5.36,2729.6,2729.1,4.48083]
[1740000917434,9.02356,2729.6,2729.1,4.48083]
[1740000917636,5.36,2729.6,2729.2,3.66407]
[1740000917938,9.02354,2729.6,2729.1,0.8167]
[1740000918102,3.66368,2729.5,2729.1,0.8167]
[1740000918294,3.6638,2729.5,2729.1,0.8167]
[1740000919234,3.6638,2729.5,2728.7,0.7841]
[1740000919235,3.66402,2729.3,2728.7,0.7841]
[1740000919401,0.6441,2729.2,2728.7,4.44884]
[1740000920342,4.30818,2729.2,2728.7,4.44884]
[1740000920637,7.97234,2729.2,2728.6,3.66487]
[1740000920998,3.6644,2729.0,2728.2,3.66529]
[1740000921231,0.6441,2728.8,2728.1,0.005]
[1740000921436,0.6441,2728.8,2728.3,3.66518]
[1740000921740,0.6441,2728.8,2728.4,3.66514]
[1740000922426,3.66452,2728.9,2728.4,4.44924]
[1740000922959,7.3291,2728.9,2728.4,4.44924]
[1740000923406,7.32913,2728.9,2728.4,0.7841]
[1740000923735,0.9111,2729.0,2728.5,3.66493]
[1740000923942,4.57548,2729.0,2728.5,3.66493]
[1740000924729,8.23995,2729.0,2728.4,0.7841]
[1740000925037,8.23995,2729.0,2728.4,4.44924]
[1740000925240,4.57548,2729.0,2728.5,3.66495]
[1740000925400,0.6441,2729.0,2728.5,3.66492]
[1740000925601,5.36,2729.1,2728.8,3.66456]
[1740000925839,3.66422,2729.1,2728.4,5.260592]
[1740000926040,3.66422,2729.1,2728.5,3.6649]
[1740000926244,3.66422,2729.1,2728.5,4.5574492]
[1740000926400,3.66443,2729.0,2728.5,0.8925492]
[1740000926602,3.66443,2729.0,2728.5,3.665]
[1740000926809,3.6647,2728.8,2728.3,3.66527]
[1740000927006,0.6441,2728.7,2728.2,4.45331]
[1740000927306,3.66495,2728.6,2728.1,0.005]
[1740000929623,0.6441,2728.7,2728.1,3.67052]
[1740000930110,3.6649,2728.6,2728.1,3.67052]
[1740000931244,0.6441,2728.7,2728.2,3.66542]
[1740000931421,4.30887,2728.7,2728.2,3.66542]
[1740000931823,0.09020888,2728.6,2728.2,3.66542]
[1740000932147,0.09020888,2728.6,2728.2,4.476499]
[1740000932346,0.09020888,2728.6,2728.2,0.811079]
[1740000932747,0.09020888,2728.6,2728.2,4.476489]
[1740000934049,0.09020888,2728.6,2728.2,0.811079]
[1740000934245,0.09020888,2728.6,2728.2,3.66541]
[1740000934822,0.09020888,2728.6,2728.5,3.66501]
[1740000935027,0.09020888,2728.6,2728.5,4.45341]
[1740000935228,5.36,2728.9,2728.5,0.7884]
[1740000935422,0.08948536,2728.8,2728.7,3.66465]
[1740000936227,0.08948536,2728.8,2728.5,0.7884]
[1740000936429,3.6643,2729.1,2728.5,4.898693]
[1740000936736,0.08954417,2729.0,2728.5,4.898693]
[1740000936942,0.08954417,2729.0,2728.6,3.6648]
[1740000937749,0.08954417,2729.0,2728.6,7.3296]
[1740000938120,4.30819,2729.2,2728.6,3.6648]
[1740000938321,0.08951477,2728.9,2728.6,3.6648]
[1740000938521,7.32858,2729.1,2728.6,4.5211583]
[1740000938721,0.08948536,2728.8,2728.6,4.5211583]
[1740000938921,7.32858,2729.1,2728.6,4.5211583]
[1740000939144,0.08945596,2728.7,2728.6,4.5211583]
[1740000939346,3.66429,2729.1,2728.6,4.5211583]
[1740000939547,0.08945596,2728.7,2728.6,4.5211583]
[1740000940019,7.32858,2729.1,2728.6,4.5211583]
[1740000940215,0.08954417,2729.0,2728.6,4.5211583]
[1740000941622,0.08954417,2729.0,2728.6,8.1859683]
[1740000941857,0.08954417,2729.0,2728.6,4.5211583]
[1740000942151,0.08954417,2729.0,2728.6,0.8563583]
[1740000942351,0.08954417,2729.0,2728.7,4.19563583]
[1740000942651,0.6441,2729.4,2728.8,0.7603]
[1740000942854,0.6441,2729.4,2729.0,3.66428]
[1740000943256,0.6441,2729.4,2728.9,3.66447]
[1740000943456,4.30792,2729.4,2728.9,3.66447]
[1740000943759,4.30792,2729.4,2728.9,0.86203858]
[1740000944655,3.66394,2729.3,2728.8,4.42489]
[1740000944965,0.6441,2729.4,2728.8,4.42489]
[1740000945127,4.30792,2729.4,2728.8,4.42489]
[1740000946364,0.09001373,2729.3,2728.8,4.42489]
[1740000947467,3.75396373,2729.3,2728.8,4.42489]
[1740000947670,3.75396373,2729.3,2728.9,0.86205058]
[1740000950366,3.75396373,2729.3,2728.8,4.42489]
[1740000952034,0.09001373,2729.3,2728.8,0.7603]
[1740000952236,0.09001373,2729.3,2728.9,3.66447]
[1740000952950,0.09001373,2729.3,2729.1,3.66418]
[1740000953358,5.36,2729.5,2729.1,3.66418]
[1740000953559,0.08962922,2729.2,2729.1,3.66418]
[1740000953755,5.36,2729.5,2729.1,3.66418]
[1740000953971,0.08962922,2729.2,2729.1,3.66418]
[1740000954162,5.36,2729.8,2729.4,3.6638]
[1740000954339,0.6441,2729.8,2729.4,3.6638]
[1740000955555,0.6441,2729.8,2729.2,4.41446]
[1740000955556,7.97085,2729.8,2729.2,4.41444]
[1740000955873,4.30746,2729.8,2729.2,4.41444]
[1740000956080,0.09004023,2729.7,2729.2,4.41444]
[1740000956281,0.09004023,2729.7,2729.2,5.222293]
[1740000957282,3.75351023,2729.7,2729.2,5.222293]
[1740000957447,3.75351023,2729.7,2729.2,4.41444]
[1740000958565,3.75351023,2729.7,2729.2,3.66404]
[1740000959273,3.75351023,2729.7,2728.9,0.8245]
[1740000959274,0.6441,2729.4,2728.9,0.8245]
[1740000959446,4.3079,2729.4,2728.9,4.48897]
[1740000959646,3.75420253,2729.3,2728.9,0.8245]
[1740000960517,0.09018253,2729.3,2728.9,4.48898]
[1740000961156,0.09018253,2729.3,2728.8,3.66449]
[1740000961355,0.09018253,2729.3,2728.8,7.32902]
[1740000961774,0.09018253,2729.3,2728.8,3.66449]
[1740000961976,0.09018253,2729.3,2728.8,7.32901]
[1740000962591,0.09018253,2729.3,2728.9,3.66445]
[1740000963386,0.09018253,2729.3,2728.8,3.66449]
[1740000963587,0.09018253,2729.3,2728.7,0.7872]
[1740000963588,4.19400978,2729.3,2728.7,0.7872]
[1740000963779,3.66415,2729.2,2728.7,0.7872]
[1740000964155,0.09002515,2729.1,2728.7,0.7872]
[1740000965561,3.75423515,2729.1,2728.6,3.66479]
[1740000965765,3.75423515,2729.1,2728.6,3.66487]
[1740000965766,0.6441,2729.0,2728.6,3.66487]
[1740000965966,4.39842917,2729.0,2728.5,0.8296]
[1740000966291,5.20468709,2729.0,2728.4,3.66505]
[1740000966598,3.66455,2728.9,2728.4,3.66505]
[1740000966895,0.08976602,2728.8,2728.4,3.66505]
[1740000967694,0.08976602,2728.8,2728.6,3.6648]
[1740000967896,0.08976602,2728.8,2728.7,3.66474]
[1740000968077,0.9111,2729.2,2728.7,5.183894]
[1740000968268,0.08985422,2729.1,2729.0,3.66434]
[1740000968469,9.93451,2729.7,2729.1,3.66413]
[1740000968667,6.0041,2729.7,2729.1,3.6641]
[1740000969176,9.66756,2729.7,2729.0,8.11477]
[1740000969377,4.657066,2729.6,2729.0,8.11477]
[1740000969694,3.66371,2729.5,2729.0,0.7862]
[1740000969863,0.6441,2729.4,2728.9,3.66446]
[1740000970507,0.08320349,2729.3,2728.9,3.66446]
[1740000970682,0.6441,2729.2,2728.7,3.66464]
[1740000970890,0.0831447,2729.1,2728.7,3.66464]
[1740000974477,0.0831447,2729.1,2728.7,7.32931]
[1740000974700,0.0831447,2729.1,2728.7,3.66464]
[1740000975908,0.0831447,2729.1,2728.6,0.7687]
[1740000976207,0.0831447,2729.1,2728.3,3.66518]
[1740000976208,3.66461,2728.8,2728.3,3.66518]
[1740000976381,3.66484,2728.7,2728.1,4.49957]
[1740000976587,3.7479132,2728.7,2728.1,4.49957]
[1740000976789,0.6441,2728.6,2728.1,4.49957]
[1740000977174,0.08301438,2728.5,2728.2,3.66542]
[1740000977491,0.08301438,2728.5,2728.2,3.66534]
[1740000978788,0.08301438,2728.5,2728.3,3.6652]
[1740000979114,0.08301438,2728.5,2728.2,3.66534]
[1740000979610,0.08301438,2728.5,2728.3,3.66521]
[1740000980692,0.08301438,2728.5,2728.3,3.66517]
[1740000981208,0.08301438,2728.5,2728.4,3.66515]
[1740000981582,6.0041,2728.9,2728.5,3.66501]
[1740000981980,0.08282592,2728.8,2728.5,3.66501]
[1740000982611,0.08282592,2728.8,2728.4,3.66503]
[1740000982825,0.08282592,2728.8,2728.6,3.66478]
[1740000983484,0.08282592,2728.8,2728.5,3.66493]
[1740000983679,0.08282592,2728.8,2728.7,3.66474]
[1740000984411,0.6441,2729.3,2728.9,3.66446]
[1740000985597,0.08289084,2729.2,2728.8,3.66452]
[1740000986133,0.08286144,2729.1,2728.8,3.66452]
[1740000986586,4.30804,2729.3,2728.7,7.32938]
[1740000986783,0.08283204,2729.0,2728.7,7.32938]
[1740000987117,0.08280264,2728.9,2728.7,7.32938]
[1740000987520,4.30804,2729.3,2728.7,7.32938]
[1740000987814,4.30804,2729.3,2728.7,7.32928]
[1740000987985,0.08289084,2729.2,2728.7,7.32928]
[1740000988185,0.08289084,2729.2,2728.8,3.66455]
[1740000988495,0.08286144,2729.1,2728.8,3.66455]
[1740000988691,4.30804,2729.3,2728.8,3.66453]
[1740000988897,0.08289084,2729.2,2728.8,3.66453]
[1740000989221,0.08289084,2729.2,2728.6,0.7833]
[1740000989517,0.6441,2729.3,2729.0,3.66434]
[1740000989518,0.08286144,2729.1,2729.0,3.66434]
[1740000989708,0.6441,2729.3,2729.0,3.66434]
[1740000990418,0.6441,2729.3,2729.0,3.66425]
[1740000990919,0.6441,2729.3,2728.9,3.66446]
[1740000991215,6.0041,2729.5,2729.0,0.8259]
[1740000991415,0.6441,2729.7,2729.4,3.66379]
[1740000991639,0.6441,2730.0,2729.4,0.8259]
[1740000991917,3.66322,2729.9,2728.9,0.8259]
[1740000992084,0.6441,2730.0,2729.4,4.48962]
[1740000992484,0.6441,2730.0,2729.5,3.66366]
[1740000992884,0.08372714,2729.9,2729.5,3.66366]
[1740000993086,3.74688714,2729.9,2729.4,4.48962]
[1740000993412,0.08372714,2729.9,2729.4,0.8259]
[1740000993724,5.08830385,2729.9,2729.4,0.8259]
[1740000993908,3.66328,2729.8,2729.4,0.8259]
[1740000994312,3.66328,2729.8,2729.3,3.66393]
[1740000995108,1.42510385,2729.9,2729.3,3.66386]
[1740000995419,5.08824385,2729.9,2729.3,3.66386]
[1740000996511,0.08400062,2729.8,2729.3,3.66386]
[1740000997227,3.74728062,2729.8,2729.3,3.66386]
[1740000997391,4.32892907,2729.8,2729.2,4.46716]
[1740000997839,0.08400062,2729.8,2729.4,3.66379]
[1740000998081,0.08400062,2729.8,2729.4,3.66372]
[1740000998248,0.08400062,2729.8,2729.5,3.66363]
[1740000998929,0.08400062,2729.8,2729.5,3.6636]
[1740001000610,0.08400062,2729.8,2729.5,7.32718]
[1740001000795,0.08400062,2729.8,2729.5,3.66358]
[1740001001423,0.08400062,2729.8,2729.3,3.66386]
[1740001001630,0.08400062,2729.8,2729.4,3.66379]
[1740001005299,0.08400062,2729.8,2729.4,3.6571743]
[1740001007967,0.6441,2731.6,2729.8,0.7859]
[1740001008177,0.6441,2731.6,2731.4,3.6611]
[1740001008331,0.6441,2731.6,2731.5,3.66099]
[1740001008667,0.6441,2731.6,2731.2,3.66139]
[1740001008869,0.6441,2731.6,2731.1,3.66144]
[1740001009032,0.6441,2731.6,2731.0,3.66164]
[1740001009226,0.6441,2731.6,2731.2,3.66135]
[1740001009566,3.66061,2731.8,2731.0,4.4726]
[1740001009567,0.6441,2731.8,2731.4,3.66105]
[1740001009931,0.6441,2731.8,2731.4,3.66102]
[1740001010484,0.6441,2731.8,2731.6,3.6608]
[1740001010635,3.66025,2732.1,2731.4,7.32206]
[1740001010830,3.66025,2732.1,2731.4,4.393226]
[1740001011053,0.04888504,2732.0,2731.4,3.66102]
[1740001011435,3.70927504,2732.0,2731.2,3.66133]
[1740001011634,3.70927504,2732.0,2731.3,3.66113]
[1740001014574,7.36967504,2732.0,2731.3,3.66113]
[1740001014974,3.70927504,2732.0,2731.3,3.66113]